fUSD/lending_fUSD_20240727
["ID","MTS","AMOUNT","RATE_DAILY","PERIOD"]
[333304748,1722047455378,-500.0,0.00010998,2]
[333304749,1722047455391,-500.0,0.00010998,2]
[333304750,1722047455403,-419.26452547,0.00010998,2]
[333304751,1722047455415,-500.0,0.00010998,2]
[333304752,1722047455427,-500.0,0.00010998,2]
[333304753,1722047455439,-374.96548378,0.00010998,2]
[333304754,1722047455451,-500.0,0.00010998,2]
[333304755,1722047455464,-500.0,0.00010998,2]
[333304756,1722047455479,-500.0,0.00010998,2]
[333304757,1722047455491,-500.0,0.00010998,2]
[333304758,1722047455504,-504.45485651,0.00010998,2]
[333304759,1722047455516,-500.0,0.00010998,2]
[333304760,1722047455528,-500.0,0.00010998,2]
[333304761,1722047455540,-467.04139434,0.00010998,2]
[333304762,1722047455552,-500.0,0.00010998,2]
[333304763,1722047455565,-500.0,0.00010998,2]
[333304764,1722047455577,-1570.85,0.00010998,2]
[333304765,1722047455590,-500.0,0.00010998,2]
[333304766,1722047455603,-500.0,0.00010998,2]
[333304767,1722047455616,-349.26048362,0.00010998,2]
[333304768,1722047455628,-500.0,0.00010998,2]
[333304769,1722047455641,-713.88,0.00010998,2]
[333304770,1722047455654,-500.0,0.00010998,2]
[333304771,1722047455666,-500.0,0.00010998,2]
[333304772,1722047455678,-500.0,0.00010998,2]
[333304773,1722047455691,-500.0,0.00010998,2]
[333304774,1722047455704,-500.0,0.00010998,2]
[333304775,1722047455716,-500.0,0.00010998,2]
[333304776,1722047455729,-501.50766163,0.00010998,2]
[333304777,1722047455742,-500.0,0.00010998,2]
[333304778,1722047455754,-631.10064512,0.00010998,2]
[333304779,1722047455766,-546.36706274,0.00010998,2]
[333304780,1722047455778,-500.0,0.00010998,2]
[333304781,1722047455792,-500.0,0.00010998,2]
[333304782,1722047455808,-500.0,0.00010998,2]
[333304783,1722047455821,-500.0,0.00010998,2]
[333304784,1722047455835,-500.0,0.00010998,2]
[333304785,1722047455849,-550.88,0.00010998,2]
[333304786,1722047455862,-500.0,0.00010998,2]
[333304787,1722047455875,-500.0,0.00010998,2]
[333304788,1722047455888,-500.0,0.00010998,2]
[333304789,1722047455901,-500.0,0.00010998,2]
[333304790,1722047455914,-500.0,0.00010998,2]
[333304791,1722047455928,-509.04,0.00010998,2]
[333304792,1722047455941,-500.0,0.00010998,2]
[333304793,1722047455954,-472.06622725,0.00010998,2]
[333304794,1722047455966,-500.0,0.00010998,2]
[333304795,1722047455980,-500.0,0.00010998,2]
[333304796,1722047455993,-500.0,0.00010998,2]
[333304797,1722047456006,-500.0,0.00010998,2]
[333304798,1722047456019,-500.0,0.00010998,2]
[333304799,1722047456031,-500.0,0.00010998,2]
[333304800,1722047456044,-500.0,0.00010998,2]
[333304801,1722047456057,-500.0,0.00010998,2]
[333304802,1722047456070,-500.0,0.00010998,2]
[333304803,1722047456083,-500.0,0.00010998,2]
[333304804,1722047456097,-500.0,0.00010998,2]
[333304805,1722047456111,-500.0,0.00010998,2]
[333304806,1722047456124,-500.0,0.00010998,2]
[333304807,1722047456136,-500.0,0.00010998,2]
[333304808,1722047456145,-500.0,0.00010998,2]
[333304809,1722047456155,-500.0,0.00010998,2]
[333304810,1722047456165,-500.0,0.00010998,2]
[333304811,1722047456174,-500.0,0.00010998,2]
[333304812,1722047456184,-500.0,0.00010998,2]
[333304813,1722047456193,-156.79164276,0.00010998,2]
[333304814,1722047456203,-500.0,0.00010998,2]
[333304815,1722047456212,-500.0,0.00010998,2]
[333304816,1722047456222,-500.0,0.00010998,2]
[333304817,1722047456232,-500.0,0.00010998,2]
[333304818,1722047456241,-350.93874274,0.00010998,2]
[333304819,1722047456251,-500.0,0.00010998,2]
[333304820,1722047456261,-500.0,0.00010998,2]
[333304821,1722047456271,-500.0,0.00010998,2]
[333304822,1722047456281,-500.0,0.00010998,2]
[333304823,1722047456290,-513.55,0.00010998,2]
[333304824,1722047456300,-500.0,0.00010998,2]
[333304825,1722047456564,-500.0,0.00010998,2]
[333304826,1722047456578,-500.0,0.00010998,2]
[333304827,1722047456588,-500.0,0.00010998,2]
[333304828,1722047456598,-505.36144861,0.00010998,2]
[333304829,1722047456607,-500.0,0.00010998,2]
[333304830,1722047456616,-500.0,0.00010998,2]
[333304831,1722047456626,-500.0,0.00010998,2]
[333304832,1722047456635,-500.0,0.00010998,2]
[333304833,1722047456644,-500.0,0.00010998,2]
[333304834,1722047456654,-500.0,0.00010998,2]
[333304835,1722047456664,-500.0,0.00010998,2]
[333304836,1722047456673,-507.73251815,0.00010998,2]
[333304837,1722047456682,-500.0,0.00010998,2]
[333304838,1722047456691,-589.28,0.00010998,2]
[333304839,1722047456701,-500.0,0.00010998,2]
[333304840,1722047456711,-500.0,0.00010998,2]
[333304841,1722047456720,-500.0,0.00010998,2]
[333304842,1722047456730,-500.0,0.00010998,2]
[333304843,1722047456739,-500.0,0.00010998,2]
[333304844,1722047456748,-500.0,0.00010998,2]
[333304845,1722047456758,-150.0,0.00010998,2]
[333304846,1722047456767,-500.0,0.00010998,2]
[333304847,1722047456776,-500.0,0.00010998,2]
[333304848,1722047456786,-500.0,0.00010998,2]
[333304849,1722047456798,-500.0,0.00010998,2]
[333304850,1722047456807,-557.87,0.00010998,2]
[333304851,1722047456817,-510.2809223,0.00010998,2]
[333304852,1722047456826,-707.19,0.00010998,2]
[333304853,1722047456835,-500.0,0.00010998,2]
[333304854,1722047456847,-500.0,0.00010998,2]
[333304855,1722047456856,-500.0,0.00010998,2]
[333304856,1722047456866,-500.0,0.00010998,2]
[333304857,1722047456878,-694.96,0.00010998,2]
[333304858,1722047456887,-500.0,0.00010998,2]
[333304859,1722047456897,-500.0,0.00010998,2]
[333304860,1722047456906,-500.0,0.00010998,2]
[333304861,1722047456915,-500.0,0.00010998,2]
[333304862,1722047456924,-500.0,0.00010998,2]
[333304863,1722047456934,-500.0,0.00010998,2]
[333304864,1722047456943,-985.48,0.00010998,2]
[333304865,1722047456953,-500.0,0.00010998,2]
[333304866,1722047456963,-500.0,0.00010998,2]
[333304867,1722047456973,-500.0,0.00010998,2]
[333304868,1722047456982,-500.0,0.00010998,2]
[333304869,1722047456991,-500.0,0.00010998,2]
[333304870,1722047457001,-500.0,0.00010998,2]
[333304871,1722047457010,-163.49038973,0.00010998,2]
[333304872,1722047457020,-500.0,0.00010998,2]
[333304873,1722047457029,-500.0,0.00010998,2]
[333304874,1722047457039,-500.0,0.00010998,2]
[333304875,1722047457048,-562.19,0.00010998,2]
[333304876,1722047457058,-500.0,0.00010998,2]
[333304877,1722047457067,-151.0,0.00010998,2]
[333304878,1722047457077,-503.21794502,0.00010998,2]
[333304879,1722047457086,-500.0,0.00010998,2]
[333304880,1722047457095,-500.0,0.00010998,2]
[333304881,1722047457105,-500.0,0.00010998,2]
[333304882,1722047457114,-500.0,0.00010998,2]
[333304883,1722047457123,-500.0,0.00010998,2]
[333304884,1722047457133,-500.0,0.00010998,2]
[333304885,1722047457143,-500.0,0.00010998,2]
[333304886,1722047457152,-500.0,0.00010998,2]
[333304887,1722047457162,-500.0,0.00010998,2]
[333304888,1722047457171,-625.52973994,0.00010998,2]
[333304889,1722047457180,-500.0,0.00010998,2]
[333304890,1722047457189,-500.0,0.00010998,2]
[333304891,1722047457198,-500.0,0.00010998,2]
[333304892,1722047457207,-500.0,0.00010998,2]
[333304893,1722047457216,-500.0,0.00010998,2]
[333304894,1722047457226,-500.0,0.00010998,2]
[333304895,1722047457235,-42692.25318794,0.00010998,2]
[333304896,1722047457244,-500.0,0.00010998,2]
[333304897,1722047457253,-787.65,0.00010998,2]
[333304898,1722047457262,-500.0,0.00010998,2]
[333304899,1722047457271,-500.0,0.00010998,2]
[333304900,1722047457280,-500.0,0.00010998,2]
[333304901,1722047457289,-500.0,0.00010998,2]
[333304902,1722047457298,-500.0,0.00010998,2]
[333304903,1722047457307,-500.0,0.00010998,2]
[333304904,1722047457316,-500.0,0.00010998,2]
[333304905,1722047457325,-500.0,0.00010998,2]
[333304906,1722047457335,-500.0,0.00010998,2]
[333304907,1722047457344,-832.78,0.00010998,2]
[333304908,1722047457354,-500.0,0.00010998,2]
[333304909,1722047457363,-500.0,0.00010998,2]
[333304910,1722047457372,-500.0,0.00010998,2]
[333304911,1722047457382,-500.0,0.00010998,2]
[333304912,1722047457391,-500.0,0.00010998,2]
[333304913,1722047457400,-500.0,0.00010998,2]
[333304914,1722047457409,-500.0,0.00010998,2]
[333304915,1722047457419,-500.0,0.00010998,2]
[333304916,1722047457428,-500.0,0.00010998,2]
[333304917,1722047457438,-500.0,0.00010998,2]
[333304918,1722047457447,-500.0,0.00010998,2]
[333304919,1722047457456,-500.0,0.00010998,2]
[333304920,1722047457466,-500.0,0.00010998,2]
[333304921,1722047457477,-500.0,0.00010998,2]
[333304922,1722047457486,-500.0,0.00010998,2]
[333304923,1722047457495,-500.0,0.00010998,2]
[333304924,1722047457508,-2010.83,0.00010998,2]
[333304925,1722047457518,-500.0,0.00010998,2]
[333304926,1722047457527,-500.0,0.00010998,2]
[333304927,1722047457536,-500.0,0.00010998,2]
[333304928,1722047457546,-500.0,0.00010998,2]
[333304929,1722047457555,-250.35841996,0.00010999,2]
[333304930,1722047457565,-510.21034533,0.00010999,2]
[333304931,1722047457575,-500.0,0.00010999,2]
[333304932,1722047457585,-229.37302982,0.00010999,2]
[333304933,1722047457595,-505.40150403,0.00010999,2]
[333304934,1722047457605,-502.24159051,0.00010999,2]
[333304935,1722047457615,-502.74947152,0.00010999,2]
[333304936,1722047457625,-511.55016849,0.00010999,2]
[333304937,1722047457635,-505.51013796,0.00010999,2]
[333304938,1722047457645,-507.92379583,0.00010999,2]
[333304939,1722047457654,-508.83789446,0.00010999,2]
[333304940,1722047457664,-506.47724286,0.00010999,2]
[333304941,1722047457674,-506.05881696,0.00010999,2]
[333304942,1722047457683,-507.01959163,0.00010999,2]
[333304943,1722047457694,-504.24407697,0.00010999,2]
[333304944,1722047457703,-505.93421893,0.00010999,2]
[333304945,1722047457713,-503.1984458,0.00010999,2]
[333304946,1722047457723,-501.9370145,0.00010999,2]
[333304947,1722047457733,-502.83296528,0.00010999,2]
[333304948,1722047457742,-502.71006076,0.00010999,2]
[333304949,1722047457753,-635.53061355,0.00010999,2]
[333304950,1722047457764,-514.1925065,0.00010999,2]
[333304951,1722047457774,-506.08557959,0.00010999,2]
[333304952,1722047457784,-508.44928008,0.00010999,2]
[333304953,1722047457796,-508.69595074,0.00010999,2]
[333304954,1722047457807,-509.45194042,0.00010999,2]
[333304955,1722047457818,-504.5812264,0.00010999,2]
[333304956,1722047457828,-500.0,0.00010999,2]
[333304957,1722047457839,-500.99145972,0.00010999,2]
[333304958,1722047457853,-504.34016171,0.00010999,2]
[333304959,1722047457862,-503.52164473,0.00010999,2]
[333304960,1722047457873,-500.0,0.00010999,2]
[333304961,1722047457882,-500.0,0.00010999,2]
[333304962,1722047457892,-500.0,0.00010999,2]
[333304963,1722047457901,-638.9737733,0.00010999,2]
[333304964,1722047457910,-501.05779202,0.00010999,2]
[333304965,1722047457920,-500.0,0.00010999,2]
[333304966,1722047457932,-190.12401756,0.00010999,2]
[333304967,1722047457942,-575.20917394,0.00010999,2]
[333304968,1722047457953,-505.54792154,0.00010999,2]
[333304969,1722047457962,-504.30531743,0.00010999,2]
[333304970,1722047457971,-350.22062953,0.00010999,2]
[333304971,1722047457980,-502.82827742,0.00010999,2]
[333304972,1722047457990,-506.71702158,0.00010999,2]
[333304973,1722047458000,-506.08467499,0.00010999,2]
[333304974,1722047458009,-502.49595263,0.00010999,2]
[333304975,1722047458019,-500.0,0.00010999,2]
[333304976,1722047458032,-563.7731368,0.00010999,2]
[333304977,1722047458041,-307.85142791,0.00010999,2]
[333304978,1722047458051,-500.0,0.00010999,2]
[333304979,1722047458060,-500.0,0.00010999,2]
[333304980,1722047458071,-500.0,0.00010999,2]
[333304981,1722047458081,-500.0,0.00010999,2]
[333304982,1722047458091,-228.74560844,0.00010999,2]
[333304983,1722047458101,-580.77626402,0.00010999,2]
[333304984,1722047458110,-500.0,0.00010999,2]
[333304985,1722047458121,-165.52195026,0.00010999,2]
[333304986,1722047458132,-500.0,0.00010999,2]
[333304987,1722047458142,-500.0,0.00010999,2]
[333304988,1722047458152,-500.0,0.00010999,2]
[333304989,1722047458162,-486.26098686,0.00010999,2]
[333304990,1722047458172,-500.0,0.00010999,2]
[333304991,1722047458181,-500.0,0.00010999,2]
[333304992,1722047458190,-500.0,0.00010999,2]
[333304993,1722047458200,-500.0,0.00010999,2]
[333304994,1722047458210,-500.0,0.00010999,2]
[333304995,1722047458219,-500.0,0.00010999,2]
[333304996,1722047458228,-500.0,0.00010999,2]
[333304997,1722047458237,-500.0,0.00010999,2]
[333304998,1722047458246,-500.0,0.00010999,2]
[333304999,1722047458257,-500.0,0.00010999,2]
[333305000,1722047458266,-500.0,0.00010999,2]
[333305001,1722047458276,-565.64025107,0.00010999,2]
[333305002,1722047458285,-580.77821647,0.00010999,2]
[333305003,1722047458297,-500.0,0.00010999,2]
[333305004,1722047458306,-353.36903128,0.00010999,2]
[333305005,1722047458317,-546.56028116,0.00010999,2]
[333305006,1722047458326,-500.0,0.00010999,2]
[333305007,1722047458335,-500.0,0.00010999,2]
[333305008,1722047458345,-500.0,0.00010999,2]
[333305009,1722047458355,-616.60685386,0.00010999,2]
[333305010,1722047458365,-599.3338519,0.00010999,2]
[333305011,1722047458374,-500.0,0.00010999,2]
[333305012,1722047458384,-613.70196815,0.00010999,2]
[333305013,1722047458394,-500.0,0.00010999,2]
[333305014,1722047458403,-500.0,0.00010999,2]
[333305015,1722047458413,-250.69006639,0.00010999,2]
[333305016,1722047458423,-500.0,0.00010999,2]
[333305017,1722047458433,-500.0,0.00010999,2]
[333305018,1722047458443,-643.97285237,0.00010999,2]
[333305019,1722047458452,-500.0,0.00010999,2]
[333305020,1722047458462,-500.0,0.00010999,2]
[333305021,1722047458473,-500.0,0.00010999,2]
[333305022,1722047458483,-500.0,0.00010999,2]
[333305023,1722047458492,-500.0,0.00010999,2]
[333305024,1722047458501,-500.0,0.00010999,2]
[333305025,1722047458511,-339.43825672,0.00010999,2]
[333305026,1722047458520,-500.0,0.00010999,2]
[333305027,1722047458530,-500.0,0.00010999,2]
[333305028,1722047458539,-506.28288126,0.00010999,2]
[333305029,1722047458548,-500.0,0.00010999,2]
[333305030,1722047458557,-500.0,0.00010999,2]
[333305031,1722047458566,-480.44751021,0.00010999,2]
[333305032,1722047458575,-500.0,0.00010999,2]
[333305033,1722047458585,-500.0,0.00010999,2]
[333305034,1722047458594,-205.28323157,0.00010999,2]
[333305035,1722047458604,-500.0,0.00010999,2]
[333305036,1722047458614,-500.0,0.00010999,2]
[333305037,1722047458623,-500.0,0.00010999,2]
[333305038,1722047458636,-500.0,0.00010999,2]
[333305039,1722047458646,-330.17060294,0.00010999,2]
[333305040,1722047458655,-285.86110275,0.00010999,2]
[333305041,1722047458665,-500.0,0.00010999,2]
[333305042,1722047458675,-500.0,0.00010999,2]
[333305043,1722047458685,-500.0,0.00010999,2]
[333305044,1722047458694,-500.0,0.00010999,2]
[333305045,1722047458704,-489.17580693,0.00010999,2]
[333305046,1722047458714,-321.95051472,0.00010999,2]
[333305047,1722047458724,-405.73838568,0.00010999,2]
[333305048,1722047458733,-611.51249022,0.00010999,2]
[333305049,1722047458743,-496.63591411,0.00010999,2]
[333305050,1722047458752,-500.0,0.00010999,2]
[333305051,1722047458761,-500.0,0.00010999,2]
[333305052,1722047458770,-500.0,0.00010999,2]
[333305053,1722047458779,-500.0,0.00010999,2]
[333305054,1722047458789,-158.08388812,0.00010999,2]
[333305055,1722047458803,-161.62000218,0.00010999,2]
[333305056,1722047458814,-500.0,0.00010999,2]
[333305057,1722047458824,-500.0,0.00010999,2]
[333305058,1722047458834,-500.0,0.00010999,2]
[333305059,1722047458846,-500.0,0.00010999,2]
[333305060,1722047458856,-500.0,0.00010999,2]
[333305061,1722047458866,-368.64631733,0.00010999,2]
[333305062,1722047458877,-500.0,0.00010999,2]
[333305063,1722047458887,-500.0,0.00010999,2]
[333305064,1722047458896,-408.52291638,0.00010999,2]
[333305065,1722047458906,-448.24033247,0.00010999,2]
[333305066,1722047458916,-396.11074122,0.00010999,2]
[333305067,1722047458926,-500.0,0.00010999,2]
[333305068,1722047458935,-500.0,0.00010999,2]
[333305069,1722047458945,-500.0,0.00010999,2]
[333305070,1722047458955,-207.00388463,0.00010999,2]
[333305071,1722047458965,-215.13865653,0.00010999,2]
[333305072,1722047458976,-500.0,0.00010999,2]
[333305073,1722047458985,-500.0,0.00010999,2]
[333305074,1722047458995,-500.0,0.00010999,2]
[333305075,1722047459005,-515.0045906,0.00010999,2]
[333305076,1722047459015,-500.0,0.00010999,2]
[333305077,1722047459024,-500.0,0.00010999,2]
[333305078,1722047459034,-500.0,0.00010999,2]
[333305079,1722047459043,-417.45,0.00010999,2]
[333305080,1722047459053,-612.62765085,0.00010999,2]
[333305081,1722047459063,-500.0,0.00010999,2]
[333305082,1722047459072,-177.67463492,0.00010999,2]
[333305083,1722047459082,-500.0,0.00010999,2]
[333305084,1722047459092,-500.0,0.00010999,2]
[333305085,1722047459102,-500.0,0.00010999,2]
[333305086,1722047459112,-500.0,0.00010999,2]
[333305087,1722047459122,-500.0,0.00010999,2]
[333305088,1722047459131,-188.28668013,0.00010999,2]
[333305089,1722047459141,-511.41459734,0.00010999,2]
[333305090,1722047459151,-237.53294311,0.00010999,2]
[333305091,1722047459161,-500.0,0.00010999,2]
[333305092,1722047459170,-500.0,0.00010999,2]
[333305093,1722047459180,-236.36938681,0.00010999,2]
[333305094,1722047459190,-500.0,0.00010999,2]
[333305095,1722047459199,-500.0,0.00010999,2]
[333305096,1722047459209,-500.0,0.00010999,2]
[333305097,1722047459218,-444.82157285,0.00010999,2]
[333305098,1722047459228,-543.24681099,0.00010999,2]
[333305099,1722047459237,-251.04789169,0.00010999,2]
[333305100,1722047459246,-500.0,0.00010999,2]
[333305101,1722047459256,-190.15708295,0.00010999,2]
[333305102,1722047459265,-629.77630105,0.00010999,2]
[333305103,1722047459274,-500.0,0.00010999,2]
[333305104,1722047459284,-500.0,0.00010999,2]
[333305105,1722047459293,-500.0,0.00010999,2]
[333305106,1722047459303,-500.0,0.00010999,2]
[333305107,1722047459312,-500.0,0.00010999,2]
[333305108,1722047459323,-500.0,0.00010999,2]
[333305109,1722047459334,-500.0,0.00010999,2]
[333305110,1722047459343,-500.0,0.00010999,2]
[333305111,1722047459354,-500.0,0.00010999,2]
[333305112,1722047459364,-500.0,0.00010999,2]
[333305113,1722047459374,-486.2792367,0.00010999,2]
[333305114,1722047459385,-320.9285632,0.00010999,2]
[333305115,1722047459395,-165.89936982,0.00010999,2]
[333305116,1722047459405,-500.0,0.00010999,2]
[333305117,1722047459414,-500.0,0.00010999,2]
[333305118,1722047459424,-330.67906686,0.00010999,2]
[333305119,1722047459435,-508.83263422,0.00010999,2]
[333305120,1722047459445,-507.64810837,0.00010999,2]
[333305121,1722047459455,-500.0,0.00010999,2]
[333305122,1722047459465,-445.09684933,0.00010999,2]
[333305123,1722047459476,-500.0,0.00010999,2]
[333305124,1722047459485,-500.0,0.00010999,2]
[333305125,1722047459494,-500.0,0.00010999,2]
[333305126,1722047459504,-500.0,0.00010999,2]
[333305127,1722047459513,-371.88524208,0.00010999,2]
[333305128,1722047459523,-500.0,0.00010999,2]
[333305129,1722047459533,-500.0,0.00010999,2]
[333305130,1722047459543,-230.69836066,0.00010999,2]
[333305131,1722047459553,-500.0,0.00010999,2]
[333305132,1722047459562,-500.0,0.00010999,2]
[333305133,1722047459572,-232.15036282,0.00010999,2]
[333305134,1722047459581,-500.0,0.00010999,2]
[333305135,1722047459591,-500.0,0.00010999,2]
[333305136,1722047459601,-500.0,0.00010999,2]
[333305137,1722047459611,-500.0,0.00010999,2]
[333305138,1722047459621,-500.0,0.00010999,2]
[333305139,1722047459630,-500.0,0.00010999,2]
[333305140,1722047459640,-500.0,0.00010999,2]
[333305141,1722047459650,-500.0,0.00010999,2]
[333305142,1722047459660,-500.0,0.00010999,2]
[333305143,1722047459670,-488.3,0.00010999,2]
[333305144,1722047459680,-500.0,0.00010999,2]
[333305145,1722047459689,-500.0,0.00010999,2]
[333305146,1722047459699,-441.90920971,0.00010999,2]
[333305147,1722047459709,-500.0,0.00010999,2]
[333305148,1722047459875,-500.0,0.00010999,2]
[333305149,1722047459885,-500.0,0.00010999,2]
[333305150,1722047459895,-500.0,0.00010999,2]
[333305151,1722047459905,-500.0,0.00010999,2]
[333305152,1722047459915,-590.9,0.00010999,2]
[333305153,1722047459924,-500.0,0.00010999,2]
[333305154,1722047459934,-426.65317114,0.00010999,2]
[333305155,1722047459944,-500.0,0.00010999,2]
[333305156,1722047459953,-328.0007294,0.00010999,2]
[333305157,1722047459963,-500.0,0.00010999,2]
[333305158,1722047459974,-500.0,0.00010999,2]
[333305159,1722047459983,-500.0,0.00010999,2]
[333305160,1722047459993,-240.34200788,0.00010999,2]
[333305161,1722047460002,-325.58959496,0.00010999,2]
[333305162,1722047460013,-500.0,0.00010999,2]
[333305163,1722047460022,-240.21680854,0.00010999,2]
[333305164,1722047460032,-500.0,0.00010999,2]
[333305165,1722047460042,-500.0,0.00010999,2]
[333305166,1722047460052,-500.0,0.00010999,2]
[333305167,1722047460062,-459.33291734,0.00010999,2]
[333305168,1722047460073,-259.40705854,0.00010999,2]
[333305169,1722047460083,-500.0,0.00010999,2]
[333305170,1722047460093,-500.0,0.00010999,2]
[333305171,1722047460103,-505.67005872,0.00010999,2]
[333305172,1722047460113,-500.0,0.00010999,2]
[333305173,1722047460122,-500.0,0.00010999,2]
[333305174,1722047460132,-500.0,0.00010999,2]
[333305175,1722047460142,-308.04327511,0.00010999,2]
[333305176,1722047460151,-483.44896515,0.00010999,2]
[333305177,1722047460161,-500.0,0.00010999,2]
[333305178,1722047460170,-504.15271943,0.00010999,2]
[333305179,1722047460180,-500.0,0.00010999,2]
[333305180,1722047460190,-224.14287532,0.00010999,2]
[333305181,1722047460200,-310.6010424,0.00010999,2]
[333305182,1722047460209,-500.0,0.00010999,2]
[333305183,1722047460219,-500.0,0.00010999,2]
[333305184,1722047460228,-500.0,0.00010999,2]
[333305185,1722047460238,-500.0,0.00010999,2]
[333305186,1722047460248,-500.0,0.00010999,2]
[333305187,1722047460258,-500.0,0.00010999,2]
[333305188,1722047460267,-500.0,0.00010999,2]
[333305189,1722047460277,-500.0,0.00010999,2]
[333305190,1722047460287,-500.0,0.00010999,2]
[333305191,1722047460296,-500.0,0.00010999,2]
[333305192,1722047460305,-500.0,0.00010999,2]
[333305193,1722047460315,-500.0,0.00010999,2]
[333305194,1722047460324,-366.06416793,0.00010999,2]
[333305195,1722047460334,-500.0,0.00010999,2]
[333305196,1722047460344,-475.23554194,0.00010999,2]
[333305197,1722047460353,-500.0,0.00010999,2]
[333305198,1722047460362,-595.07,0.00010999,2]
[333305199,1722047460372,-500.0,0.00010999,2]
[333305200,1722047460381,-642.08827504,0.00010999,2]
[333305201,1722047460390,-485.01985744,0.00010999,2]
[333305202,1722047460400,-500.0,0.00010999,2]
[333305203,1722047460409,-500.0,0.00010999,2]
[333305204,1722047460419,-500.0,0.00010999,2]
[333305205,1722047460428,-500.0,0.00010999,2]
[333305206,1722047460438,-282.48999901,0.00010999,2]
[333305207,1722047460447,-500.0,0.00010999,2]
[333305208,1722047460457,-500.0,0.00010999,2]
[333305209,1722047460466,-500.0,0.00010999,2]
[333305210,1722047460476,-500.0,0.00010999,2]
[333305211,1722047460485,-500.0,0.00010999,2]
[333305212,1722047460495,-497.75073489,0.00010999,2]
[333305213,1722047460506,-500.0,0.00010999,2]
[333305214,1722047460516,-280.55913492,0.00010999,2]
[333305215,1722047460525,-500.0,0.00010999,2]
[333305216,1722047460535,-500.0,0.00010999,2]
[333305217,1722047460545,-500.0,0.00010999,2]
[333305218,1722047460554,-500.0,0.00010999,2]
[333305219,1722047460564,-500.0,0.00010999,2]
[333305220,1722047460573,-509.67761061,0.00010999,2]
[333305221,1722047460583,-500.0,0.00010999,2]
[333305222,1722047460592,-508.36344627,0.00010999,2]
[333305223,1722047460602,-500.0,0.00010999,2]
[333305224,1722047460612,-505.957347,0.00010999,2]
[333305225,1722047460621,-500.0,0.00010999,2]
[333305226,1722047460631,-533.27777589,0.00010999,2]
[333305227,1722047460641,-500.0,0.00010999,2]
[333305228,1722047460651,-502.10490885,0.00010999,2]
[333305229,1722047460660,-500.0,0.00010999,2]
[333305230,1722047460670,-512.37562965,0.00010999,2]
[333305231,1722047460680,-500.0,0.00010999,2]
[333305232,1722047460690,-500.0,0.00010999,2]
[333305233,1722047460699,-342.8,0.00010999,2]
[333305234,1722047460709,-500.0,0.00010999,2]
[333305235,1722047460719,-503.75418142,0.00010999,2]
[333305236,1722047460731,-500.0,0.00010999,2]
[333305237,1722047460740,-500.0,0.00010999,2]
[333305238,1722047460751,-542.41252981,0.00010999,2]
[333305239,1722047460761,-500.0,0.00010999,2]
[333305240,1722047460771,-500.0,0.00010999,2]
[333305241,1722047460781,-500.0,0.00010999,2]
[333305242,1722047460790,-500.0,0.00010999,2]
[333305243,1722047460804,-500.0,0.00010999,2]
[333305244,1722047460814,-500.0,0.00010999,2]
[333305245,1722047460824,-500.0,0.00010999,2]
[333305246,1722047460833,-500.0,0.00010999,2]
[333305247,1722047460845,-500.0,0.00010999,2]